bitfinex/quotes_SOLUSD_20260113
["timestamp","ask_amount","ask_price","bid_price","bid_amount"]
[1768323119955,7.68073712,143.53,143.49,9.89661856]
[1768323120371,7.68086594,143.53,143.49,9.89661856]
[1768323120695,0.71348237,143.53,143.49,9.89661856]
[1768323121775,7.680699,143.53,143.49,9.89661856]
[1768323121987,0.71348237,143.52,143.49,2.23606357]
[1768323122280,2.94954594,143.52,143.47,0.1]
[1768323122576,0.71348237,143.51,143.47,0.79161783]
[1768323122757,0.71348237,143.51,143.47,7.76166815]
[1768323123083,0.71348237,143.56,143.51,0.69161783]
[1768323123259,0.71348237,143.57,143.53,0.69161783]
[1768323123578,0.71348237,143.56,143.51,0.69161783]
[1768323123782,0.71348237,143.55,143.51,9.89575464]
[1768323123968,7.67979988,143.55,143.51,2.9276814]
[1768323124152,2.94954594,143.54,143.49,7.66053696]
[1768323124371,0.71348237,143.54,143.51,2.23606357]
[1768323124677,0.71348237,143.54,143.5,2.23606357]
[1768323125284,0.71348237,143.54,143.5,2.95138075]
[1768323125501,0.71348237,143.54,143.5,0.71531718]
[1768323125664,0.71348237,143.54,143.5,2.95138075]
[1768323125866,7.68043088,143.54,143.5,2.95138075]
[1768323126295,7.68043088,143.54,143.5,7.68395319]
[1768323126591,7.68043088,143.54,143.5,0.71531718]
[1768323126791,7.68043088,143.54,143.5,2.95138075]
[1768323126990,0.70450539,143.53,143.5,2.23606357]
[1768323127168,7.6714539,143.54,143.5,2.95138075]
[1768323127370,2.94056896,143.53,143.49,0.71531718]
[1768323127900,6.96694851,143.54,143.5,0.71531718]
[1768323128663,0.70450539,143.53,143.5,0.71531718]
[1768323128869,6.96694851,143.54,143.5,0.71531718]
[1768323129092,7.6714539,143.54,143.5,0.71531718]
[1768323129292,7.6714539,143.54,143.5,2.95138075]
[1768323129992,7.6714539,143.54,143.5,0.71531718]
[1768323130193,25.08820184,143.54,143.5,0.71531718]
[1768323130692,0.70450539,143.53,143.49,2.95138075]
[1768323130892,0.70450539,143.53,143.49,0.71531718]
[1768323131201,0.70450539,143.54,143.51,2.23606357]
[1768323131500,7.67084482,143.55,143.52,2.23606357]
[1768323132084,6.96633943,143.55,143.52,2.95138075]
[1768323132395,6.96591329,143.56,143.53,0.71531718]
[1768323132783,0.70450539,143.56,143.53,2.23606357]
[1768323133286,0.70450539,143.56,143.52,2.23606357]
[1768323133799,0.70450539,143.55,143.52,2.23606357]
[1768323134696,0.70450539,143.55,143.52,9.20362118]
[1768323134897,0.70450539,143.55,143.52,6.96755761]
[1768323135072,0.70450539,143.55,143.52,9.20362118]
[1768323136498,7.64280911,143.57,143.53,0.70715611]
[1768323136688,0.67746326,143.56,143.53,2.94321968]
[1768323136878,0.67746326,143.56,143.53,2.23606357]
[1768323137696,0.67746326,143.56,143.53,9.20315137]
[1768323139191,0.67746326,143.56,143.53,8.47815137]
[1768323139397,0.67746326,143.56,143.53,8.18239954]
[1768323140404,0.67746326,143.56,143.53,1.21531174]
[1768323140800,0.67746326,143.56,143.53,2.23606357]
[1768323140987,34.81877338,143.61,143.53,2.23606357]
[1768323140988,7.06241029,143.61,143.56,0.70715611]
[1768323141187,0.57267862,143.6,143.56,0.70715611]
[1768323141493,0.5679892,143.58,143.54,0.70715611]
[1768323141688,9.76910111,143.58,143.54,0.70715611]
[1768323142088,7.53303754,143.58,143.54,0.70715611]
[1768323144102,7.53303754,143.58,143.54,2.94321968]
[1768323144482,7.53303754,143.58,143.54,9.90982467]
[1768323145003,7.53303754,143.58,143.54,7.6737611]
[1768323145207,7.53303754,143.58,143.54,9.90982467]
[1768323146092,7.53303754,143.58,143.54,7.6737611]
[1768323146294,7.53303754,143.58,143.54,9.90982467]
[1768323147300,0.099,143.61,143.56,0.70715611]
[1768323147486,0.099,143.61,143.56,2.94321968]
[1768323147685,2.33506357,143.61,143.56,2.94321968]
[1768323147886,0.57267862,143.6,143.56,2.23606357]
[1768323148317,0.57267862,143.6,143.56,2.94321968]
[1768323148607,0.5679892,143.56,143.52,0.70715611]
[1768323148987,0.5679892,143.56,143.52,2.94321968]
[1768323149310,0.5679892,143.56,143.52,9.91071103]
[1768323149489,7.53380166,143.56,143.52,7.67464746]
[1768323149881,0.56339311,143.54,143.49,0.70715611]
[1768323150287,27.19366082,143.56,143.51,0.70715611]
[1768323150699,0.099,143.55,143.51,0.70715611]
[1768323151312,2.33506357,143.55,143.51,0.70715611]
[1768323152210,9.77544136,143.54,143.5,0.70715611]
[1768323153712,2.33980036,143.53,143.48,0.70715611]
[1768323154403,6.96767001,143.52,143.48,0.70715611]
[1768323155304,6.96767001,143.52,143.49,0.69542278]
[1768323157013,6.96724932,143.53,143.5,0.69542278]
[1768323157190,2.23606357,143.56,143.51,0.69542278]
[1768323157615,51.12162991,143.57,143.51,0.69542278]
[1768323157800,0.57746326,143.57,143.52,0.69542278]
[1768323158115,2.23606357,143.56,143.52,0.69542278]
[1768323158420,9.20201001,143.56,143.52,0.69542278]
[1768323159997,6.96594644,143.56,143.52,0.69542278]
[1768323160208,9.20201001,143.56,143.52,0.69542278]
[1768323160716,6.96594644,143.56,143.52,0.69542278]
[1768323161111,6.96542554,143.57,143.53,0.69542278]
[1768323161600,9.20148911,143.57,143.53,0.69542278]
[1768323162908,9.77416773,143.57,143.53,0.69542278]
[1768323163297,6.96542554,143.57,143.53,0.69542278]
[1768323163519,9.20148911,143.57,143.53,0.69542278]
[1768323164719,6.96542554,143.57,143.54,0.69542278]
[1768323165419,6.96494489,143.58,143.54,0.69542278]
[1768323167023,9.20100846,143.58,143.54,0.69542278]
[1768323168832,9.30474525,143.58,143.54,0.69542278]
[1768323169128,2.23606357,143.55,143.53,0.69542278]
[1768323169332,2.23606357,143.56,143.53,0.69542278]
[1768323169537,2.23606357,143.57,143.53,0.69542278]
[1768323170023,2.80874219,143.57,143.53,0.69542278]
[1768323170409,6.96572861,143.56,143.53,0.69542278]
[1768323170600,2.23606357,143.57,143.53,0.69542278]
[1768323170601,6.96542935,143.57,143.53,0.69542278]
[1768323171027,6.96496888,143.58,143.54,0.69542278]
[1768323171621,9.20103245,143.58,143.54,0.69542278]
[1768323172028,6.96496888,143.58,143.54,0.69542278]
[1768323172226,9.20103245,143.58,143.54,0.69542278]
[1768323172831,2.23606357,143.58,143.55,0.69542278]
[1768323173007,9.20043849,143.59,143.55,0.69542278]
[1768323173914,2.23606357,143.58,143.55,0.69542278]
[1768323175835,9.20088354,143.58,143.55,0.69542278]
[1768323176335,2.23606357,143.58,143.55,0.69542278]
[1768323177840,2.80405277,143.58,143.54,0.69542278]
[1768323178045,2.34444288,143.57,143.53,7.66237572]
[1768323178226,9.30979648,143.57,143.53,7.66237572]
[1768323178940,9.20141717,143.57,143.53,7.66237572]
[1768323179246,9.20141717,143.57,143.54,0.69542278]
[1768323179941,2.23606357,143.57,143.54,0.69542278]
[1768323180742,2.23606357,143.57,143.54,7.66201366]
[1768323181037,7.54237272,143.58,143.54,7.66201366]
[1768323181038,9.77843629,143.58,143.54,7.66201366]
[1768323181344,11.03483032,143.58,143.54,7.66201366]
[1768323181846,3.4924576,143.59,143.55,0.69542278]
[1768323182336,19.3801107,143.62,143.57,0.69542278]
[1768323182337,23.73314914,143.62,143.57,0.69542278]
[1768323182540,20.24069154,143.62,143.57,0.69542278]
[1768323182745,23.73314914,143.62,143.57,0.69542278]
[1768323183043,11.03314914,143.62,143.57,0.69542278]
[1768323183423,11.03314914,143.62,143.57,7.66059239]
[1768323183621,11.03314914,143.62,143.58,0.69542278]
[1768323185934,0.10373679,143.59,143.55,7.68830301]
[1768323186141,3.59619439,143.59,143.55,7.68830301]
[1768323187146,3.59619439,143.59,143.55,0.72220375]
[1768323187354,0.5679892,143.58,143.54,7.68872388]
[1768323188064,10.45708467,143.59,143.54,7.68872388]
[1768323188065,17.40906759,143.61,143.54,6.96652013]
[1768323188223,3.5914576,143.62,143.57,0.72220375]
[1768323188623,0.099,143.62,143.58,0.72220375]
[1768323189920,7.06193759,143.62,143.58,0.72220375]
[1768323190125,0.099,143.62,143.58,7.68676091]
[1768323190324,7.06184903,143.62,143.58,0.72220375]
[1768323191247,0.099,143.62,143.58,7.68673442]
[1768323191751,6.96250004,143.63,143.59,0.72220375]
[1768323192049,10.55395764,143.63,143.59,0.72220375]
[1768323194954,0.57267862,143.62,143.59,0.72220375]
[1768323196055,4.06513622,143.62,143.58,0.72272717]
[1768323196441,0.57267862,143.62,143.58,0.72272717]
[1768323197439,6.96330339,143.61,143.58,0.72272717]
[1768323197749,3.60083691,143.59,143.55,0.72272717]
[1768323199444,10.56528207,143.59,143.55,0.72272717]
[1768323199636,7.07282447,143.59,143.55,0.72272717]
[1768323201450,10.56528207,143.59,143.55,0.72272717]
[1768323201835,27.97596526,143.59,143.55,0.72272717]
[1768323202942,24.48350766,143.59,143.55,0.72272717]
[1768323203462,0.57746326,143.61,143.57,0.72272717]
[1768323204047,7.54096866,143.61,143.57,0.72272717]
[1768323205259,11.03342626,143.61,143.57,0.72272717]
[1768323206834,3.4924576,143.59,143.55,0.72272717]
[1768323207033,24.37176387,143.61,143.54,0.72272717]
[1768323207034,3.59619439,143.58,143.54,0.72272717]
[1768323207556,4.06992086,143.59,143.54,0.72272717]
[1768323208059,6.96475832,143.58,143.54,0.72272717]
[1768323209158,4.06992086,143.57,143.53,0.72272717]
[1768323209747,3.5914576,143.57,143.53,0.72272717]
[1768323210063,6.96572861,143.56,143.53,0.72272717]
[1768323211259,10.45785525,143.57,143.54,0.72272717]
[1768323215370,6.96539765,143.57,143.54,0.72272717]
[1768323224754,6.96539765,143.57,143.47,34.94961053]
[1768323224755,4.0604468,143.55,143.5,0.67636111]
[1768323226981,10.45915677,143.54,143.51,0.67636111]
[1768323227856,11.02683817,143.55,143.51,0.67636111]
[1768323228160,3.4924576,143.54,143.51,0.67636111]
[1768323228475,4.05585071,143.53,143.5,0.67636111]
[1768323228659,0.56339311,143.53,143.49,0.67636111]
[1768323228857,4.05585071,143.53,143.49,0.67636111]
[1768323229582,4.05585071,143.53,143.49,7.64545292]
[1768323229781,4.05585071,143.53,143.5,0.67636111]
[1768323230650,0.57746326,143.56,143.51,0.67636111]
[1768323230853,13.27746326,143.56,143.51,0.67636111]
[1768323231053,3.4924576,143.55,143.51,0.67636111]
[1768323231262,3.5914576,143.55,143.51,0.67636111]
[1768323232179,0.099,143.55,143.51,7.64441228]
[1768323233378,7.06533959,143.55,143.51,7.64441228]
[1768323233582,7.06533959,143.55,143.51,0.67636111]
[1768323233763,10.55779719,143.55,143.51,0.67636111]
[1768323234571,10.55779719,143.55,143.51,7.64450885]
[1768323235468,10.55779719,143.55,143.52,0.67636111]
[1768323235688,10.55779719,143.55,143.51,0.67636111]
[1768323236187,7.06533959,143.55,143.51,0.67636111]
[1768323236984,0.57267862,143.54,143.5,6.96816719]
[1768323237289,0.57267862,143.54,143.5,11.1369859]
[1768323237479,0.57267862,143.54,143.51,0.67636111]
[1768323238174,7.53943744,143.54,143.51,0.67636111]
[1768323241084,0.57746326,143.55,143.51,11.13672098]
[1768323241264,0.57746326,143.55,143.52,0.67636111]
[1768323241887,0.57746326,143.55,143.52,7.64401462]
[1768323242273,0.57746326,143.55,143.52,0.67636111]
[1768323242467,4.06992086,143.55,143.52,0.67636111]
[1768323243290,2.81377938,143.55,143.52,0.67636111]
[1768323244270,0.57746326,143.55,143.52,0.67636111]
[1768323244470,2.81377938,143.55,143.52,0.67636111]
[1768323248493,0.57746326,143.55,143.52,0.67636111]
[1768323248999,7.54370767,143.55,143.52,0.67636111]
[1768323252694,24.37835201,143.57,143.52,0.67636111]
[1768323252871,2.23631612,143.56,143.52,0.67636111]
[1768323253191,2.80899474,143.56,143.52,0.67636111]
[1768323253404,2.80430532,143.54,143.5,0.7173419]
[1768323253993,0.5679892,143.54,143.5,0.7173419]
[1768323254503,0.5679892,143.54,143.5,2.95365802]
[1768323254894,7.53498199,143.54,143.5,2.95365802]
[1768323255280,7.53498199,143.54,143.5,0.7173419]
[1768323256619,9.77129811,143.54,143.5,0.7173419]
[1768323257298,9.30174095,143.55,143.51,0.7226279]
[1768323258393,9.30174095,143.55,143.5,0.7226279]
[1768323258394,0.57267862,143.54,143.5,0.7226279]
[1768323258601,2.80899474,143.54,143.5,0.7226279]
[1768323259182,6.96718456,143.53,143.5,0.7226279]
[1768323259699,7.07092135,143.53,143.5,0.7226279]
[1768323259875,0.5679892,143.52,143.48,6.96930731]
[1768323260189,0.5679892,143.52,143.49,0.7226279]
[1768323260501,7.54464782,143.53,143.49,0.7226279]
[1768323261403,9.78096394,143.53,143.49,0.7226279]
[1768323262386,0.099,143.52,143.48,9.20572834]
[1768323262589,0.57267862,143.51,143.48,9.20572834]
[1768323264288,0.57267862,143.51,143.48,6.96941222]
[1768323264490,0.57267862,143.51,143.48,9.20572834]
[1768323264679,0.57267862,143.51,143.48,9.92835624]
[1768323265909,0.57267862,143.51,143.48,6.96941222]
[1768323266115,0.57267862,143.51,143.48,9.20572834]
[1768323266311,0.57267862,143.51,143.47,0.1]
[1768323266476,0.57746326,143.5,143.47,0.8226279]
[1768323266683,0.57746326,143.57,143.5,0.7226279]
[1768323266982,2.33531612,143.56,143.51,0.7226279]
[1768323267405,0.57267862,143.55,143.51,0.7226279]
[1768323267804,2.80899474,143.55,143.51,0.7226279]
[1768323268005,9.7756934,143.55,143.51,0.7226279]
[1768323268206,7.5433502,143.56,143.52,0.7226279]
[1768323268394,9.77966632,143.56,143.52,0.7226279]
[1768323268600,6.96588694,143.56,143.52,0.7226279]
[1768323269184,6.3503189,143.63,143.55,0.7226279]
[1768323269185,0.57746326,143.6,143.55,0.7226279]
[1768323269383,2.81377938,143.6,143.55,0.7226279]
[1768323270294,6.96438338,143.59,143.55,0.7226279]
[1768323271208,7.06338338,143.59,143.55,0.7226279]
[1768323271601,6.96438338,143.59,143.55,0.7226279]
[1768323271804,6.96438338,143.59,143.56,0.7226279]
[1768323272601,9.20022383,143.6,143.56,0.7226279]
[1768323272790,6.96390771,143.6,143.57,0.7226279]
[1768323272997,6.96390771,143.6,143.58,0.7226279]
[1768323273295,6.96281854,143.62,143.58,0.7226279]
[1768323274095,6.96281854,143.62,143.59,0.7226279]
[1768323274796,6.96281854,143.62,143.6,0.72183849]
[1768323274997,6.96281854,143.62,143.6,0.66610564]
[1768323276405,6.96281854,143.62,143.58,2.23631612]
[1768323276794,6.96281854,143.62,143.57,2.23631612]
[1768323276999,0.56908173,143.6,143.56,0.72183849]
[1768323277319,0.56908173,143.6,143.56,2.95815461]
[1768323277513,0.56908173,143.6,143.57,0.72183849]
[1768323278024,27.23937714,143.62,143.57,2.95815461]
[1768323278422,0.099,143.61,143.57,2.95815461]
[1768323278923,7.06272383,143.61,143.57,2.95815461]
[1768323279717,7.06272383,143.61,143.57,0.72183849]
[1768323279902,7.06272383,143.61,143.57,2.95815461]
[1768323280416,0.62785414,143.6,143.55,0.72183849]
[1768323280723,0.10428855,143.59,143.55,0.72183849]
[1768323281220,6.96475832,143.58,143.55,0.72183849]
[1768323281801,6.96475832,143.58,143.56,0.72183849]
[1768323282901,6.96435939,143.59,143.56,0.72183849]
[1768323283921,6.9637883,143.6,143.56,0.72183849]
[1768323284106,9.20010442,143.6,143.56,0.72183849]
[1768323284418,6.9637883,143.6,143.56,0.72183849]
[1768323284717,6.96337978,143.61,143.58,0.72183849]
[1768323285027,6.96291198,143.62,143.58,0.72183849]
[1768323285321,9.1992281,143.62,143.58,0.72183849]
[1768323286099,9.82708224,143.62,143.58,0.72183849]
[1768323286712,7.59076612,143.62,143.58,0.72183849]
[1768323287029,9.82708224,143.62,143.58,0.72183849]
[1768323287332,9.82708224,143.62,143.58,7.6865908]
[1768323288001,2.23631612,143.61,143.58,0.72183849]
[1768323288700,9.82708224,143.62,143.58,0.72183849]
[1768323289447,6.96291198,143.62,143.59,0.72183849]
[1768323289652,9.2982281,143.62,143.58,0.72183849]
[1768323289943,2.86417026,143.61,143.57,0.72183849]
[1768323290123,0.61748701,143.57,143.51,6.96814384]
[1768323290316,2.23631612,143.55,143.52,0.72183849]
[1768323290520,2.35086812,143.56,143.52,0.72183849]
[1768323291513,9.31680606,143.56,143.52,0.72183849]
[1768323291913,9.286806,143.56,143.52,0.72183849]
[1768323292943,6.96593794,143.56,143.53,0.72183849]
[1768323293739,2.23631612,143.58,143.54,0.72183849]
[1768323294430,9.20141857,143.58,143.54,0.72183849]
[1768323294615,2.23631612,143.57,143.54,0.72183849]
[1768323295636,9.20141857,143.58,143.54,0.72183849]
[1768323296243,6.96442263,143.59,143.55,0.72183849]
[1768323296751,9.20073875,143.59,143.55,0.72183849]
[1768323298649,2.23631612,143.58,143.55,0.72183849]
[1768323299749,9.2013265,143.58,143.55,0.72183849]
[1768323300149,9.30531805,143.58,143.53,0.72183849]
[1768323300342,9.2013265,143.58,143.55,0.72183849]
[1768323300534,9.20074711,143.59,143.56,0.72183849]
[1768323300855,6.96443099,143.59,143.56,0.72183849]
[1768323301559,6.96281854,143.62,143.58,0.72183849]
[1768323301737,6.96281854,143.62,143.56,6.96563894]
[1768323301938,9.19913466,143.62,143.56,9.20195506]
[1768323303356,10.4534266,143.62,143.56,3.49060806]
[1768323303653,10.4534266,143.62,143.58,0.72183849]
[1768323303852,3.49060806,143.61,143.58,0.72183849]
[1768323304536,6.96184906,143.64,143.59,0.72183849]
[1768323304746,6.96184906,143.64,143.6,0.72183849]
[1768323304945,6.96184906,143.64,143.6,0.4990188]
[1768323305463,19.66149247,143.65,143.61,6.96330339]
[1768323305680,10.45160343,143.66,143.61,6.96330339]
[1768323305955,3.49060806,143.66,143.6,10.45428236]
[1768323306253,7.28048968,143.67,143.6,6.9636743]
[1768323306438,3.49060806,143.64,143.6,6.9636743]
[1768323306839,3.49060806,143.64,143.61,0.66473512]
[1768323307039,3.49060806,143.64,143.62,0.66473512]
[1768323307245,6.96112805,143.66,143.6,0.66473512]
[1768323307459,6.96112805,143.66,143.62,0.66473512]
[1768323307654,10.45173611,143.66,143.62,0.66473512]
[1768323308055,3.49060806,143.65,143.62,0.66473512]
[1768323308671,3.49060806,143.64,143.62,0.66473512]
[1768323309062,10.45272977,143.64,143.61,0.66473512]
[1768323309366,10.77608754,143.64,143.6,0.66473512]
[1768323309567,10.45272977,143.64,143.61,0.66473512]
[1768323309974,3.49060806,143.65,143.62,0.66473512]
[1768323310464,3.49060806,143.66,143.62,0.66473512]
[1768323310647,3.49060806,143.66,143.6,0.66473512]
[1768323310648,3.49060806,143.63,143.6,0.66473512]
[1768323311169,6.96250151,143.63,143.6,0.66473512]
[1768323311545,4.14235028,143.64,143.6,0.66473512]
[1768323311546,7.61375422,143.64,143.6,0.66473512]
[1768323312468,10.45205865,143.65,143.61,0.66473512]
[1768323313464,6.96145059,143.65,143.61,0.66473512]
[1768323314564,10.45205865,143.65,143.61,0.66473512]
[1768323315436,19.66105472,143.66,143.62,0.66473512]
[1768323315678,6.96105472,143.66,143.62,0.66473512]
[1768323316375,10.45166278,143.66,143.62,0.66473512]
[1768323316544,10.45221597,143.65,143.62,0.66473512]
[1768323317245,3.49060806,143.64,143.6,0.69691831]
[1768323317451,7.28496568,143.65,143.6,0.69691831]
[1768323317775,3.49060806,143.64,143.6,0.69691831]
[1768323318539,10.45261972,143.64,143.6,0.69691831]
[1768323318970,10.45261972,143.64,143.61,0.69691831]
[1768323319664,6.96201166,143.64,143.61,0.69691831]
[1768323320246,6.96201166,143.64,143.59,0.69691831]
[1768323320247,3.49060806,143.63,143.59,0.69691831]
[1768323320652,10.45337173,143.63,143.59,0.69691831]
[1768323320965,10.45337173,143.63,143.6,0.69691831]
[1768323321169,0.27764184,143.62,143.58,6.96447272]
[1768323322176,0.27764184,143.62,143.58,7.66139103]
[1768323322477,0.70123694,143.62,143.57,0.69691831]
[1768323322657,3.49060806,143.6,143.57,0.69691831]
[1768323323273,6.96330339,143.61,143.58,0.69691831]
[1768323323772,10.45391145,143.61,143.58,0.69691831]
[1768323323963,6.96330339,143.61,143.58,0.69691831]
[1768323324165,10.45391145,143.61,143.58,0.69691831]
[1768323325367,3.49060806,143.6,143.56,0.69691831]
[1768323325565,3.7682499,143.6,143.56,0.69691831]
[1768323325877,3.49060806,143.59,143.56,0.69691831]
[1768323326774,3.7682499,143.6,143.56,0.69691831]
[1768323327470,6.96427327,143.59,143.56,0.69691831]
[1768323328656,10.45488133,143.59,143.56,0.69691831]
[1768323329461,6.96427327,143.59,143.56,0.69691831]
[1768323331880,6.93427327,143.59,143.56,0.69691831]
[1768323332183,0.70123694,143.59,143.55,6.96618672]
[1768323332358,0.70123694,143.59,143.54,3.49060806]
[1768323332359,3.49060806,143.62,143.57,0.69691831]
[1768323333072,4.18760905,143.62,143.57,0.69691831]
[1768323333279,0.28183543,143.61,143.56,11.15317007]
[1768323333478,0.69284934,143.6,143.56,11.15317007]
[1768323333659,7.66856016,143.62,143.58,0.69691831]
[1768323333983,10.45360932,143.62,143.58,0.69691831]
[1768323335884,10.34851748,143.62,143.59,0.71255966]
[1768323337784,10.62615932,143.62,143.57,20.37766014]
[1768323337989,0.68009474,143.61,143.57,20.37766014]
[1768323338284,4.1707028,143.61,143.57,20.37766014]
[1768323338493,0.29857262,143.6,143.57,19.66510048]
[1768323338679,6.85790942,143.62,143.57,20.37766014]
[1768323338878,3.49060806,143.61,143.58,0.71255966]
[1768323339270,10.453929,143.61,143.58,0.71255966]
[1768323340382,6.96332094,143.61,143.58,0.71255966]
[1768323340692,0.68009474,143.7,143.6,3.49060806]
[1768323340902,0.2,143.73,143.65,3.49060806]
[1768323340903,4.3707028,143.71,143.65,3.49060806]
[1768323341068,0.2,143.71,143.67,0.71255966]
[1768323341269,3.49060806,143.7,143.67,0.71255966]
[1768323341582,28.04540308,143.71,143.67,0.71255966]
[1768323341765,3.98899755,143.7,143.65,0.71255966]
[1768323342105,3.98899755,143.7,143.64,10.45243708]
[1768323342106,3.99077826,143.68,143.64,7.67438868]
[1768323342397,0.5001702,143.68,143.66,3.49060806]
[1768323342579,0.68009474,143.7,143.66,3.49060806]
[1768323343489,7.45599916,143.69,143.66,3.49060806]
[1768323343978,6.95942654,143.69,143.66,4.20316772]
[1768323344888,6.95895878,143.7,143.68,0.71255966]
[1768323345089,12.9,143.71,143.68,4.0831678]
[1768323345286,0.2,143.71,143.7,3.49060806]
[1768323345994,0.2,143.71,143.69,3.49060806]
[1768323346697,12.9,143.73,143.7,3.49060806]
[1768323346872,19.8575085,143.73,143.7,3.49060806]
[1768323347888,12.9,143.73,143.71,4.20316772]
[1768323348081,12.9,143.73,143.71,0.71255966]
[1768323348570,12.9,143.73,143.71,4.20316772]
[1768323349174,20.88096136,143.76,143.73,0.71255966]
[1768323349175,6.95603784,143.76,143.73,0.71255966]
[1768323349375,0.2,143.77,143.75,3.49060806]
[1768323349580,0.2,143.8,143.76,3.49060806]
[1768323350074,0.2,143.8,143.79,3.49060806]
[1768323350290,10.64475566,143.8,143.7,6.95887249]
[1768323350498,3.49060806,143.77,143.71,12.7]
[1768323350680,0.68009474,143.76,143.72,3.49060806]
[1768323350886,0.68009474,143.76,143.73,3.49060806]
[1768323351283,0.68009474,143.78,143.74,3.49060806]
[1768323351797,7.63533402,143.78,143.73,7.66999541]
[1768323352006,7.63533402,143.78,143.75,3.49060806]
[1768323353089,0.68009474,143.78,143.75,16.19060806]
[1768323353605,7.63516612,143.78,143.75,12.7]
[1768323353812,0.68009474,143.78,143.75,16.19060806]
[1768323354406,0.88009474,143.8,143.76,3.49060806]
[1768323354608,0.88009474,143.8,143.75,20.36905943]
[1768323354794,0.88009474,143.8,143.76,3.49060806]
[1768323354994,0.88009474,143.8,143.77,3.49060806]
[1768323355907,0.88009474,143.8,143.76,10.44634361]
[1768323356294,0.88009474,143.8,143.76,23.14634361]
[1768323356801,0.88009474,143.8,143.77,12.7]
[1768323357010,0.88009474,143.8,143.77,16.19060806]
[1768323357303,0.88009474,143.8,143.77,23.14612831]
[1768323357994,0.2,143.8,143.78,16.19060806]
[1768323358191,1e-08,143.8,143.78,13.41255966]
[1768323358390,0.68009475,143.8,143.76,19.65601945]
[1768323359002,4.17070281,143.8,143.76,19.65601945]
[1768323359402,4.17070281,143.8,143.76,6.95601945]
[1768323359603,0.68009475,143.8,143.76,23.14662751]
[1768323360395,1e-08,143.8,143.77,4.20316772]
[1768323361006,1e-08,143.8,143.77,3.49060806]
[1768323361509,0.60607922,143.8,143.76,9.03541075]
[1768323361713,0.099,143.77,143.73,3.49060806]
[1768323361912,0.40607921,143.79,143.75,12.7]
[1768323362213,0.40300841,143.77,143.72,6.95761848]
[1768323362387,3.49060806,143.76,143.73,0.71255966]
[1768323362708,3.49060806,143.77,143.73,6.95742565]
[1768323363211,3.49060806,143.75,143.68,17.39953161]
[1768323363505,0.099,143.74,143.7,2.23015541]
[1768323363813,2.32915541,143.74,143.71,6.95809297]
[1768323364109,2.23015541,143.74,143.71,7.67065263]
[1768323364411,2.23015541,143.74,143.71,6.95809297]
[1768323364603,0.10101968,143.74,143.7,6.95881746]
[1768323364805,2.23015541,143.71,143.69,12.7]
[1768323365005,2.23015541,143.7,143.67,7.67384604]
[1768323365708,2.23015541,143.71,143.67,7.67384604]
[1768323366393,2.23015541,143.76,143.68,0.71348849]
[1768323366711,2.23015541,143.73,143.68,0.71348849]
[1768323366913,24.34782607,143.75,143.68,0.71348849]
[1768323367109,2.23015541,143.72,143.68,0.71348849]
[1768323367310,2.23015541,143.71,143.67,6.96035755]
[1768323367513,2.23015541,143.7,143.66,20.37421142]
[1768323367815,2.23015541,143.7,143.68,0.71348849]
[1768323368202,2.23015541,143.72,143.68,0.71348849]
[1768323368405,6.95652173,143.75,143.7,0.71348849]
[1768323368608,2.23015541,143.76,143.71,0.71348849]
[1768323368815,2.23015541,143.75,143.71,0.71348849]
[1768323369491,2.23015541,143.76,143.71,0.71348849]
[1768323369717,2.23015541,143.75,143.71,0.71348849]
[1768323370214,2.23015541,143.73,143.7,0.71348849]
[1768323370799,6.95729951,143.74,143.7,0.71348849]
[1768323371008,2.23015541,143.73,143.7,0.71348849]
[1768323372120,2.23015541,143.72,143.7,0.71348849]
[1768323372611,2.23015541,143.73,143.7,0.71348849]
[1768323373590,2.23015541,143.72,143.7,0.71348849]
[1768323373790,6.95652173,143.75,143.7,0.71348849]
[1768323374010,2.23015541,143.74,143.7,0.71348849]
[1768323374204,2.23015541,143.73,143.7,0.71348849]
[1768323374507,2.23015541,143.73,143.71,0.71348849]
[1768323374706,2.23015541,143.74,143.71,0.71348849]
[1768323374892,2.23015541,143.75,143.71,0.71348849]
[1768323375618,2.23015541,143.77,143.73,0.71348849]
[1768323375793,2.23015541,143.76,143.73,0.71348849]
[1768323375995,2.23015541,143.76,143.72,0.71715581]
[1768323376393,2.23015541,143.76,143.73,7.67464554]
[1768323376702,24.3431125,143.78,143.73,0.71715581]
[1768323376902,2.23015541,143.76,143.73,0.71715581]
[1768323377306,24.3431125,143.78,143.73,0.71715581]
[1768323377815,6.95458654,143.79,143.73,7.6745657]
[1768323377995,2.23015541,143.77,143.73,7.6745657]
[1768323378824,24.34105291,143.79,143.73,0.71715581]
[1768323379124,2.23015541,143.77,143.73,0.71715581]
[1768323379332,2.23015541,143.75,143.71,6.95816324]
[1768323379619,2.23015541,143.75,143.71,20.37531905]
[1768323379805,2.23015541,143.77,143.73,0.71715581]
[1768323380820,2.23015541,143.78,143.73,0.71715581]
[1768323381124,24.34105291,143.79,143.74,0.71715581]
[1768323381297,2.23015541,143.78,143.74,0.71715581]
[1768323381794,2.23015541,143.77,143.73,6.95738358]
[1768323382014,2.23015541,143.77,143.73,7.67453939]
[1768323382323,24.34105291,143.79,143.73,7.67453939]